Cogmind - Beta 10 *** ADVENTURER MODE // 2020.09.17 @ 11:02:07 Player: PseudoLoneWolf Result: Destroyed by G-47 Trooper with Particle Gun Performance ------------- Evolutions (3) 1500 Regions Visited (5) 1000 Robots Destroyed (32) 160 Value Destroyed (878) 878 Prototype IDs (2) 40 Alien Tech Used (0) 0 Bonus (0) 0 TOTAL SCORE: 3578 Bonus ------- None Cogmind --------- Core Integrity 0/700 Matter 241/300 Energy 100/100 System Corruption 0% Temperature Cool (18) Movement Core (50) Location -7/Factory Parts ------- > --- POWER (2) -------- (None) > --- PROPULSION (4) --- (None) > --- UTILITY (4) ------ (None) > --- WEAPON (3) ------- (None) > --- INVENTORY (4) ---- (None) Peak State ------------ > --- POWER ------------ Light Deuterium Engine Nuclear Core > --- PROPULSION ------- Armored Wheel Armored Wheel Armored Huge Wheel > --- UTILITY ---------- Small Storage Unit Small Storage Unit Improved Medium Armor Plating Recalibrator > --- WEAPON ----------- Improved EM Shotgun Improved Medium Laser Heavy Laser > --- INVENTORY -------- Light Angular Momentum Engine [Rating: 38] Favorites ----------- Power Ion Engine Engine Ion Engine Power Core Light Nuclear Core Propulsion Armored Wheel Leg Aluminum Leg Wheel Armored Wheel Flight Unit Flight Unit Utility Small Storage Unit Device Improved Terrain Scanner Storage Small Storage Unit Processor Seismic Analyzer Protection Light Armor Plating Weapon High-powered Shotgun Energy Gun Spread Laser Ballistic Gun High-powered Shotgun Launcher Shock Bomb Launcher Build | -11 -10 -10 -9 -8 -7 ------- Run | Scr Mat Min Mat Mat Fac Slots Evolved 6 | . . . 2 2 2 Power 1 | . . . . 1 . Propulsion 2 | . . . . 1 1 Utility 2 | . . . 2 . . Weapon 1 | . . . . . 1 Parts Attached 49 | 6 4 5 13 11 10 Power 9 | 1 1 . 1 4 2 Engine 6 | 1 1 . 1 1 2 Core 3 | . . . . 3 . Reactor . | . . . . . . Propulsion 10 | 2 . . 5 2 1 Treads . | . . . . . . Leg 3 | 2 . . 1 . . Wheel 5 | . . . 2 2 1 Hover . | . . . . . . Flight 2 | . . . 2 . . Utility 13 | 1 1 3 3 2 3 Device 7 | . 1 2 2 . 2 Storage 2 | 1 . . 1 . . Processor 1 | . . 1 . . . Hackware . | . . . . . . Protection 3 | . . . . 2 1 Artifact . | . . . . . . Weapon 17 | 2 2 2 4 3 4 Energy Gun 10 | 1 2 1 1 2 3 Energy Cannon . | . . . . . . Ballistic Gun 6 | 1 . 1 3 . 1 Ballistic Cannon . | . . . . . . Launcher 1 | . . . . 1 . Special Weapon . | . . . . . . Impact Weapon . | . . . . . . Slashing Weapon . | . . . . . . Piercing Weapon . | . . . . . . Special Melee Weapon . | . . . . . . Unidentified Prototypes 2 | . . . . 1 1 Parts Lost 28 | . . 1 2 7 18 Power 5 | . . . . 2 3 Propulsion 6 | . . . 2 1 3 Utility 8 | . . . . 2 6 Weapon 9 | . . 1 . 2 6 Highest Loss Streak 9 | . . 1 2 6 9 Average Slot Usage (%) 90 | . 87 99 96 95 67 Engine 9 | . 14 14 11 5 5 Core 3 | . . . . 9 5 Leg 11 | . 28 28 13 . . Wheel 11 | . . . 4 26 15 Device 10 | . 2 8 22 9 5 Storage 15 | . 14 14 17 18 11 Processor 2 | . . 5 4 . . Protection 3 | . . . . 7 7 Energy Gun 13 | . 25 22 5 8 12 Ballistic Gun 7 | . 2 5 16 9 1 Naked Turns 1 | . . . . . 1 Heaviest Build 38 | 10 16 16 21 30 38 Greatest Support 52 | 20 20 20 24 36 52 Greatest Overweight (x) 11 | . . . 6 . 11 Average Overweight (x) . | . . . . . 1 Largest Inventory Capacity 8 | 6 6 6 8 8 8 Average Capacity 6 | 5 6 6 7 8 7 Most Carried 8 | 4 6 6 8 8 2 Average Carried 4 | 2 5 5 5 5 1 Final Capacity 8 | 6 6 6 8 8 4 Final Carried 8 | 4 6 5 8 3 . Class Distribution -------------------- 91% | Mutant 4% | Scavenger-Mutant 3% | Tank Dominant Class ---------------- Mutant | -10/Materials Mutant | -10/Mines Mutant | -9/Materials Mutant | -8/Materials Mutant | -7/Factory Resources | -11 -10 -10 -9 -8 -7 ----------- Run | Scr Mat Min Mat Mat Fac Matter Collected 769 | 226 . 126 266 103 48 Remotely . | . . . . . . Salvage Created 940 | . . 89 565 142 144 Parts 65 | . . 14 34 12 5 Haulers Intercepted 1 | . . . 1 . . Recyclers Shooed 1 | . . . . 1 . Parts Field Recycled . | . . . . . . Retrieved Matter . | . . . . . . Parts Self-Destructed . | . . . . . . Prevented . | . . . . . . Kills | -11 -10 -10 -9 -8 -7 ------- Run | Scr Mat Min Mat Mat Fac Combat Hostiles Destroyed 26 | . . 6 13 4 3 Guns 25 | . . 6 13 4 2 AOE 1 | . . . . . 1 Classes Destroyed 9 | . . 2 5 2 . Builder 1 | . . . 1 . . Hauler 1 | . . . 1 . . Recycler 1 | . . . 1 . . Operator 1 | . . . . 1 . Watcher 2 | . . . 2 . . Swarmer 10 | . . 4 4 2 . Grunt 10 | . . 2 5 . 3 Duelist 1 | . . . . 1 . Sentry 5 | . . . 4 1 . Best Kill Streak 5 | . . 3 5 2 2 Combat Bots Only 5 | . . 3 5 2 2 Max Kills in Single Turn 3 | . . 1 3 1 1 Gunslinging . | . . . . . . Exploded 1 | . . . . . 1 Melee . | . . . . . . Uniques/NPCs Destroyed . | . . . . . . Combat | -11 -10 -10 -9 -8 -7 -------- Run | Scr Mat Min Mat Mat Fac Damage Taken 3561 | . 24 255 478 853 1951 Core 955 | . . 63 77 113 702 Absorbed by Shields 61 | . . . . . 61 Core Remaining (%) 83 | 100 . 74 80 79 . Volleys Fired 69 | . 1 14 25 20 9 Largest 3 | . 2 2 2 2 3 Hottest 164 | . 130 130 96 90 164 Shots Fired 136 | . 2 26 50 38 20 Gun 134 | . 2 26 50 36 20 Cannon . | . . . . . . Launcher 2 | . . . . 2 . Special . | . . . . . . Kinetic 68 | . . 3 44 20 1 Thermal 38 | . 2 23 3 . 10 Explosive . | . . . . . . Electromagnetic 30 | . . . 3 18 9 Robot Hit Streak 17 | . 3 17 12 13 5 Robot Miss Streak 6 | . 6 3 4 2 2 Penetration Max . | . . . . . . Secondary Targets 8 | . . 2 5 1 . Max Gunslinging Chain 1 | . . 1 1 1 . Shots Hit Robots 115 | . 2 22 40 34 17 Core Hits 69 | . . 21 27 11 10 Critical Hits 2 | . . . 2 . . Critical Kills 1 | . . . 1 . . Critical Parts Destroyed 1 | . . . 1 . . Melee Attacks . | . . . . . . Impact . | . . . . . . Slashing . | . . . . . . Piercing . | . . . . . . Sneak Attacks . | . . . . . . Combat Hostiles . | . . . . . . Follow-up Attacks . | . . . . . . Damage Inflicted 2100 | . 14 213 777 743 353 Guns 1833 | . 14 213 777 631 198 Cannons . | . . . . . . Explosions 261 | . . . . 106 155 Melee . | . . . . . . Ramming 6 | . . . . 6 . Kinetic 1161 | . . 10 703 427 21 Thermal 298 | . 14 203 30 . 51 Explosive 155 | . . . . . 155 Electromagnetic 480 | . . . 44 310 126 Impact . | . . . . . . Slashing . | . . . . . . Piercing . | . . . . . . Highest Corruption . | . . . . . . Average Corruption . | . . . . . . Corruption Purged . | . . . . . . Overload Shots . | . . . . . . Overflow Damage 60 | . . . . . 60 Projectiles . | . . . . . . Explosions 60 | . . . . . 60 Melee . | . . . . . . Knockbacks . | . . . . . . Impact . | . . . . . . Kinetic . | . . . . . . Secondary . | . . . . . . Self-Inflicted Damage 105 | . . . . 35 70 Shots 3 | . . . . 2 1 Rammed 2 | . . . . 1 1 Targets Rammed 2 | . . . . 1 1 Kicked . | . . . . . . Crushed . | . . . . . . Highest Temperature 577 | . 69 370 1 108 577 Average Temperature 172 | . 38 163 1 41 301 Received Heat Transfer 1653 | . 18 126 150 225 1134 Effects 21 | . . 2 . . 19 Shutdowns 4 | . . 1 . . 3 Interference 4 | . . 1 . . 3 Short Circuit 2 | . . . . . 2 Damage (major) 8 | . . . . . 8 Damage (core) 3 | . . . . . 3 Siege Activations . | . . . . . . Robots Corrupted . | . . . . . . Combat Hostiles . | . . . . . . Parts Fried 1 | . . . . 1 . Impact Corruptions . | . . . . . . Robots Melted . | . . . . . . Combat Hostiles . | . . . . . . Parts Melted . | . . . . . . Heat Transferred 482 | . 20 277 74 . 111 Parts Sabotaged . | . . . . . . Parts Stolen . | . . . . . . Parts Stripped . | . . . . . . Power Chain Reactions . | . . . . . . Missiles Intercepted . | . . . . . . Alert | -11 -10 -10 -9 -8 -7 ------- Run | Scr Mat Min Mat Mat Fac Peak Influence 411 | . 30 139 411 296 173 Initial 147 | . . 9 . 147 39 Average 129 | . 5 79 192 198 98 Maximum Alert Level 2 | . . . 2 1 . Low Security (%) 76 | 100 100 100 53 46 100 Level 1 23 | . . . 45 53 . Level 2 . | . . . . . . Level 3 . | . . . . . . Level 4 . | . . . . . . Level 5 . | . . . . . . High Security . | . . . . . . Max Security . | . . . . . . Squads Dispatched 5 | . . . 1 3 1 Investigation . | . . . . . . Extermination . | . . . . . . Reinforcement 2 | . . . 1 . 1 Assault . | . . . . . . Garrison 3 | . . . . 3 . Intercept . | . . . . . . Construction Impeded . | . . . . . . Haulers Reinforced . | . . . . . . Stealth | -11 -10 -10 -9 -8 -7 --------- Run | Scr Mat Min Mat Mat Fac Distress Signals 4 | . . . . 4 . Communications Jammed . | . . . . . . Distress Signals . | . . . . . . Times Spotted 73 | . 5 8 19 27 14 Peak Tracking Total 10 | . 4 3 5 10 8 Tactical Retreats 12 | . . 1 1 8 2 Traps | -11 -10 -10 -9 -8 -7 ------- Run | Scr Mat Min Mat Mat Fac Traps Triggered 1 | . . . . . 1 Indirectly . | . . . . . . Trap Hack Attempts . | . . . . . . Triggered . | . . . . . . Disarmed . | . . . . . . Reprogrammed . | . . . . . . Reused . | . . . . . . Traps Extracted . | . . . . . . Installed . | . . . . . . Triggered . | . . . . . . Machines | -11 -10 -10 -9 -8 -7 ---------- Run | Scr Mat Min Mat Mat Fac Machines Disabled 5 | . . . . . 5 Max in Single Turn 4 | . . . . . 4 Machines Sabotaged . | . . . . . . Garrisons Compromised . | . . . . . . Overloaded Fab Kills . | . . . . . . Fab Network Shutdowns . | . . . . . . Hacking | -11 -10 -10 -9 -8 -7 --------- Run | Scr Mat Min Mat Mat Fac Machines Accessed 2 | . 1 . . 1 . Terminals 2 | . 1 . . 1 . Fabricators . | . . . . . . Repair Stations . | . . . . . . Recycling Units . | . . . . . . Scanalyzers . | . . . . . . Garrison Access . | . . . . . . Total Hacks 11 | . 6 . . 5 . Successful 10 | . 5 . . 5 . Failed 1 | . 1 . . . . Catastrophic . | . . . . . . Database Lockouts . | . . . . . . Manual . | . . . . . . Terminals 11 | . 6 . . 5 . Fabricators . | . . . . . . Repair Stations . | . . . . . . Recycling Units . | . . . . . . Scanalyzers . | . . . . . . Garrison Access . | . . . . . . Terminal Hacks 10 | . 5 . . 5 . Record 4 | . 1 . . 3 . Alert Level 3 | . 2 . . 1 . Unreport Threat 1 | . 1 . . . . Locate Traps 1 | . 1 . . . . Security Status 1 | . . . . 1 . Fabricator Hacks . | . . . . . . Repair Station Hacks . | . . . . . . Recycling Unit Hacks . | . . . . . . Scanalyzer . | . . . . . . Garrison Access Hacks . | . . . . . . Unauthorized Hacks . | . . . . . . Terminals . | . . . . . . Fabricators . | . . . . . . Repair Stations . | . . . . . . Recycling Units . | . . . . . . Scanalyzers . | . . . . . . Garrison Access . | . . . . . . Data Cores Recovered 1 | . . . . 1 . Used 1 | . . . . 1 . Hacking Detections 2 | . 1 . . 1 . Full Trace Events . | . . . . . . Feedback Events . | . . . . . . Feedback Blocked . | . . . . . . Robot Schematics Acquired . | . . . . . . Robots Built . | . . . . . . Matter . | . . . . . . Time . | . . . . . . Total Robot Build Rating . | . . . . . . Part Schematics Acquired . | . . . . . . Parts Built . | . . . . . . Matter . | . . . . . . Time . | . . . . . . Total Part Build Rating . | . . . . . . Parts Repaired . | . . . . . . Time . | . . . . . . Parts Recycled . | . . . . . . Recycled Matter . | . . . . . . Retrieved Matter . | . . . . . . Retrieved Components . | . . . . . . Parts Scanalyzed . | . . . . . . Part Schematics Acquired . | . . . . . . Parts Damaged . | . . . . . . Bothacking | -11 -10 -10 -9 -8 -7 ------------ Run | Scr Mat Min Mat Mat Fac Used RIF Installer . | . . . . . . Robots Hacked . | . . . . . . Non-combat . | . . . . . . Combat . | . . . . . . Robot Hacks Applied . | . . . . . . Relay Couplers Released . | . . . . . . Robots Rewired . | . . . . . . Allies Hacked . | . . . . . . Hacks Repelled . | . . . . . . Allies | -11 -10 -10 -9 -8 -7 -------- Run | Scr Mat Min Mat Mat Fac Total Allies . | . . . . . . Largest Group . | . . . . . . Highest-Rated Group . | . . . . . . Highest-Rated Ally . | . . . . . . Total Orders . | . . . . . . Ally Attacks . | . . . . . . Total Damage . | . . . . . . Kills . | . . . . . . Allies Corrupted . | . . . . . . Allies Melted . | . . . . . . Intel | -11 -10 -10 -9 -8 -7 ------- Run | Scr Mat Min Mat Mat Fac Robot Analysis Total . | . . . . . . Derelict Logs Recovered 2 | . . 2 . . . Drone Launches . | . . . . . . Drone Recoveries . | . . . . . . Exploration | -11 -10 -10 -9 -8 -7 ------------- Run | Scr Mat Min Mat Mat Fac Turns Passed 1792 | 71 113 436 369 461 342 Spaces Moved 1246 | 50 78 316 190 411 201 Core 54 | 6 . . 4 . 44 Treads . | . . . . . . Legs 565 | 44 78 316 127 . . Wheels 621 | . . . 53 411 157 Hover . | . . . . . . Flight 6 | . . . 6 . . Fastest Speed 50 | 50 120 120 90 90 90 Average Speed 114 | 111 120 120 133 90 137 Slowest Speed 600 | 120 120 120 440 90 600 Overloaded Moves . | . . . . . . Propulsion Burnouts . | . . . . . . Robots Hopped . | . . . . . . Cave-ins Triggered . | . . . . . . Exploration Rate (%) 26 | 4 20 66 17 43 7 Regions Visited 5 Branch Regions 1 Pre-discovered Areas . | . . . . . . Known Exits Taken . | . . . . . . Unknown Exits Taken 5 | 1 1 1 1 1 . Scrap Searched 1 | . . 1 . . . Spaces Dug . | . . . . . . Terrain Destroyed 59 | . . . . . 59 Melee . | . . . . . . Projectile . | . . . . . . AOE 59 | . . . . . 59 Terrain Rammed . | . . . . . . Walls Destroyed . | . . . . . . Machines Disabled . | . . . . . . Actions | -11 -10 -10 -9 -8 -7 --------- Run | Scr Mat Min Mat Mat Fac Total 1468 | 62 95 347 255 463 246 Wait 50 | 3 5 6 5 11 20 Move 1241 | 49 77 315 189 410 201 Hop . | . . . . . . Pick Up 30 | 4 4 2 13 5 2 Fast Attach 24 | 6 2 2 5 4 5 Attach 15 | . . 1 3 6 5 Detach 1 | . . 1 . . . Swap 10 | . 2 2 5 1 . Drop 26 | . 4 4 10 5 3 Fire 69 | . 1 14 25 20 9 Melee . | . . . . . . Ram 2 | . . . . 1 1 Kick . | . . . . . . Crush . | . . . . . . Escape Stasis . | . . . . . . Rewire . | . . . . . . Trap . | . . . . . . Miscellaneous . | . . . . . . Route ------- -11/Scrapyard -10/Materials -10/Mines -9/Materials (discovered 2 exits: *Mat / Min) -8/Materials -7/Factory History --------- Turn | Location | Event 32 | -11/Scrapyard | Discovered new exit (range 16) 72 | -11/Scrapyard | Entered Materials 174 | -10/Materials | Discovered new exit (range 10) 185 | -10/Materials | Entered Mines 186 | -10/Mines | Assembled infested the area 191 | -10/Mines | Assisted by a Guerilla fighting off Assembled 314 | -10/Mines | Build established: Mutant 544 | -10/Mines | Discovered new exit (range 5) 574 | -10/Mines | Learned Materials emergency access door positions 621 | -10/Mines | Entered Materials 621 | -9/Materials | Evolved 2 slots: Utility x2 622 | -9/Materials | Identified exit to Mines 966 | -9/Materials | Discovered new exit (range 3) 990 | -9/Materials | Entered another Materials area 990 | -8/Materials | Evolved 2 slots: Power x1, Propulsion x1 1238 | -8/Materials | Garrison activated, responded to threat 1276 | -8/Materials | Lost 6 parts (1p1n2u2w) 1446 | -8/Materials | Discovered new exit (range 6) 1451 | -8/Materials | Entered Factory 1451 | -7/Factory | Evolved 2 slots: Propulsion x1, Weapon x1 1581 | -7/Factory | Lost 4 parts (1u3w) 1706 | -7/Factory | Core integrity fell below 50% 1752 | -7/Factory | Lost 9 parts (2p2n2u3w) 1793 | -7/Factory | Core integrity fell below 20% 1793 | -7/Factory | Destroyed by G-47 Trooper with Particle Gun Last Messages --------------- 01663_ Sml. Storage Unit destroyed. 01673_ Imp. EM Shotgun destroyed. 01685_ Nuclear Core destroyed. 01692_ Lgt. Deuterium Engine destroyed. 01701_ Hvy. Laser destroyed. 01719_ Slammed into G-47 Trooper. 01721_ Imp. Medium Armor Plating destroyed. 01722_ Arm. Huge Wheel functionality restored. 01754_ Imp. Shield Generator destroyed. 01762_ Recalibrator destroyed. 01770_ Arm. Huge Wheel destroyed. 01772_ Sml. Storage Unit destroyed. 01792_ Triggered Heavy Explosive Trap. 01792_ An explosion rips through the floor. 01792_ G-47 Trooper destroyed. 01792_ Matter Pump disabled. 01792_ Nuclear Reactor explodes. 01792_ Lgt. Angular Momentum Engine destroyed. 01792_ T-07 Excavator destroyed. 01792_ Matter Pump disabled. Map ----- +----------------------------------------------------+ | ???????????????????????????????????# "" """" | | ???????????????????????????????????# "T ! | | ???????????????????????????????????# "" | | ???????????????????????????????????# ! | | ??????????????????????+#+##????????##########+#+## | | ?????????????????????# #?############## # | | ?????????????????????# #?# # # | | ?????????????????????# #?# # # | | ?????????????????????# #?# """ """ # " | | ?????????????????????# #?# """ """ # # | | ?????????????????????# #?# """ """ # # | | ?????????????????????# #?# "" "" # # | | ?????????????????????# #?# "" "" # # | | ?????????????????????# #?# # # | | ?????????????????????# #?# # ## | | ?????????????????????+ g #?# # #? | | ?????????????????????# #?# # #? | | ?????????????????????# #?# # #? | | ??????????????"??????#g g ############+### #? | | ???????????? """????# #? | | ???????????? ???# ^ #? | | ??????????? ?# #? | | ?????????????? # " #? | | ????????????????? l "" #? | | ?????????????????#### g "r ######### #? | | ??????????????# @ g #? # #? | | ??????????????# = " #?"""" # #? | | ??????????????# # """" # #? | | ??????????????# ! !# """" # #? | | ??????????????# # # """" + /? | | ??????????????# ?# # """" # #? | | ??????????????# ??# ###### """" # #? | | ??????????????# ???#u ###????# """" # ## | | ??????????????# ????# #??????# # | | ??????????????# ?????#^^ #??????# # | | ??????????????#??????# #??????# # | | ?????????????????????# #??????# # %= | | ?????????????????????# #??????# # | | ?????????????????????# #??????# "" "" ####+# | | ?????????????????????# #??????# ""T"" # | | ????????????????????? #??????# """ | | ????????????????????? #??????# | | ????????????????????? +??????######## | | ?????????????????????? ??????????????# | | ????????????????????????????????????????# | | ????????????????????????????????????????## | | ????????????????????????????????????????? | | ????????????????????????????????????????# | | ????????????????????????????????????????# | | ????????????????????????????????????????### | +----------------------------------------------------+ Best States ------------- Heat Dissipation 45 Energy Generation 23 Energy Capacity 425 Matter Stores 300 Matter Capacity 300 Sight Range 16 Terrain Scan Range 16 Terrain Scan Density 60 Armor Coverage 225 Resistance: KI 20 Resistance: TH 20 Resistance: EX 20 Resistance: EM 20 Resistance: I 20 Resistance: S 20 Resistance: P 20 Core Shielding 20 Evasion (%) 42 Offensive Hacking 10 Item Schematics ----------------- None Robot Schematics ------------------ None Fabricated ------------ Nothing Alien Tech Used ----------------- None Achievements -------------- Dynamic Key Challenges ------------ None Game ------ Seed WeightDecoderHumpback Manual? 0 Play Time 00:37:27 Cumulative 3.9 hours Start 2020.09.17 @ 10:23:19 End 2020.09.17 @ 11:02:07 Sessions 1 Manual Loads 0 Difficulty Adventurer Special Mode None Game No. 8 Rogue 4 Adventurer 4 Explorer 0 Win Type - Total 0 Types 0/0/0/0/0/0/0/0/0 Lore% 8 Gallery% 16 Achievement% 12 Wizard Run 0 Options --------- ASCII 0 Keyboard 0 Movement Numpad Keybinds 0 Fullscreen 1 Font 18/SmallcapsGlow Map View 76x50 Tactical HUD 1 Map Filters NONE Filters NONE Steam 1 RUN: 66723a37-274c-4447-baa1-06ff71db474d